bitfinex/quotes_BTCUSD_20240823
["timestamp","ask_amount","ask_price","bid_price","bid_amount"]
[1724453750624,1.69422115,64513.0,64508.0,0.3872]
[1724453750744,1.69422115,64513.0,64507.0,0.3872]
[1724453751155,1.70822115,64513.0,64507.0,0.3872]
[1724453751363,1.69422115,64513.0,64507.0,0.3872]
[1724453752204,1.70822115,64513.0,64507.0,0.3872]
[1724453752356,1.69422115,64513.0,64507.0,0.3872]
[1724453752562,1.68022115,64513.0,64507.0,0.3872]
[1724453752773,1.70822115,64513.0,64507.0,0.3872]
[1724453753574,1.70922115,64513.0,64504.0,0.1939]
[1724453753781,2.09382115,64513.0,64504.0,0.395]
[1724453753997,2.08182115,64513.0,64504.0,0.395]
[1724453754201,2.09582115,64513.0,64504.0,0.395]
[1724453754400,2.09282115,64513.0,64504.0,0.395]
[1724453754704,1.69422115,64513.0,64504.0,0.395]
[1724453754899,1.39620615,64513.0,64504.0,0.395]
[1724453755507,0.75317615,64513.0,64512.0,0.6034027]
[1724453755755,0.74720001,64513.0,64512.0,0.6034027]
[1724453755953,0.64720001,64513.0,64512.0,0.6034027]
[1724453756164,0.95721501,64513.0,64512.0,0.6034027]
[1724453756372,1.01318501,64513.0,64512.0,0.6034027]
[1724453756542,0.39315501,64513.0,64512.0,0.6034027]
[1724453756737,1.01318501,64513.0,64512.0,0.6034027]
[1724453757519,1.11318501,64513.0,64512.0,0.6034027]
[1724453757771,1.10118501,64513.0,64512.0,0.6034027]
[1724453758110,1.09818501,64513.0,64512.0,0.6034027]
[1724453758264,0.78817001,64513.0,64512.0,0.6034027]
[1724453758428,0.80217001,64513.0,64512.0,0.6034027]
[1724453758854,1.11218501,64513.0,64512.0,0.6034027]
[1724453759987,1.42220001,64513.0,64512.0,0.6034027]
[1724453760521,1.42220001,64513.0,64512.0,0.4170027]
[1724453760522,1.44520001,64513.0,64512.0,0.4170027]
[1724453761069,1.44520001,64513.0,64512.0,0.0220027]
[1724453763746,1.44520001,64513.0,64512.0,0.0130027]
[1724453765365,1.75521501,64513.0,64512.0,0.0130027]
[1724453765569,1.44520001,64513.0,64512.0,0.0130027]
[1724453772513,1.82980001,64513.0,64512.0,0.0130027]
[1724453772716,2.13981501,64513.0,64512.0,0.0130027]
[1724453774144,2.02440001,64513.0,64512.0,0.0130027]
[1724453774772,2.33541501,64513.0,64512.0,0.0130027]
[1724453775116,2.32441501,64513.0,64512.0,0.0130027]
[1724453775342,2.45464622,64513.0,64512.0,0.0130027]
[1724453775519,2.33741501,64513.0,64512.0,0.0130027]
[1724453775719,2.32441501,64513.0,64512.0,0.0130027]
[1724453775919,2.31041501,64513.0,64512.0,0.0130027]
[1724453776247,2.33841501,64513.0,64512.0,0.0130027]
[1724453776559,2.32441501,64513.0,64512.0,0.0130027]
[1724453776988,2.33841501,64513.0,64512.0,0.0130027]
[1724453778307,1.95381501,64513.0,64512.0,0.0130027]
[1724453780937,1.64380001,64513.0,64512.0,0.0130027]
[1724453781438,1.44820001,64513.0,64512.0,0.0130027]
[1724453784455,1.80462883,64513.0,64512.0,0.0130027]
[1724453784651,1.75821501,64513.0,64512.0,0.0130027]
[1724453785548,1.80462883,64513.0,64512.0,0.0130027]
[1724453786285,1.75821501,64513.0,64512.0,0.0130027]
[1724453786480,1.82883575,64513.0,64512.0,0.0130027]
[1724453786680,1.75921501,64513.0,64512.0,0.0130027]
[1724453787170,1.80468274,64513.0,64512.0,0.0130027]
[1724453787445,1.49466774,64513.0,64512.0,0.0130027]
[1724453787680,1.44820001,64513.0,64512.0,0.0130027]
[1724453788393,1.75821501,64513.0,64512.0,0.0130027]
[1724453789460,1.82783575,64513.0,64512.0,0.0130027]
[1724453790778,1.82874546,64513.0,64512.0,0.0130027]
[1724453796505,2.24344546,64513.0,64512.0,0.0130027]
[1724453796814,2.35420952,64513.0,64512.0,0.0130027]
[1724453797310,2.55010952,64513.0,64512.0,0.0130027]
[1724453797553,2.66814409,64513.0,64512.0,0.0130027]
[1724453797743,2.55210952,64513.0,64512.0,0.0130027]
[1724453798377,1.55180923,64500.0,64499.0,0.00827]
[1724453798579,1.61308724,64500.0,64499.0,0.00827]
[1724453798754,1.34144701,64500.0,64499.0,0.59017]
[1724453800543,1.34744701,64500.0,64499.0,0.59017]
[1724453800764,1.34144701,64500.0,64499.0,0.59017]
[1724453800940,1.35244701,64500.0,64499.0,0.59017]
[1724453801140,1.35944701,64500.0,64499.0,0.59017]
[1724453801279,1.34844701,64500.0,64499.0,0.59017]
[1724453801680,1.35944701,64500.0,64499.0,0.59017]
[1724453802331,0.118,64500.0,64499.0,0.5904272]
[1724453802502,0.018,64500.0,64499.0,0.636111]
[1724453802704,0.018,64500.0,64499.0,0.5904272]
[1724453802903,0.63929301,64500.0,64499.0,0.59017]
[1724453803362,0.94937001,64500.0,64499.0,0.59017]
[1724453803566,0.94237001,64500.0,64499.0,0.59017]
[1724453803911,0.63229301,64500.0,64499.0,0.59017]
[1724453804115,0.93137001,64500.0,64499.0,0.59017]
[1724453804591,0.93237001,64500.0,64499.0,0.59017]
[1724453805136,0.93137001,64500.0,64499.0,0.59017]
[1724453805303,0.93537001,64500.0,64499.0,0.59017]
[1724453806737,0.93537001,64500.0,64499.0,0.39507]
[1724453807252,1.24544701,64500.0,64499.0,0.00827]
[1724453808110,1.34544701,64500.0,64499.0,0.00827]
[1724453808316,1.34144701,64500.0,64499.0,0.00827]
[1724453808528,1.34544701,64500.0,64499.0,0.00827]
[1724453808718,1.35344701,64500.0,64499.0,0.00827]
[1724453809847,1.34944701,64500.0,64499.0,0.00827]
[1724453810052,1.34144701,64500.0,64499.0,0.00827]
[1724453810333,1.35144701,64500.0,64499.0,0.00827]
[1724453812656,1.34644701,64500.0,64499.0,0.00827]
[1724453814739,1.65652401,64500.0,64499.0,0.00827]
[1724453815003,1.67952401,64500.0,64499.0,0.00827]
[1724453815204,1.72603504,64500.0,64499.0,0.00827]
[1724453815626,2.08482401,64500.0,64499.0,0.00827]
[1724453816065,2.27022401,64500.0,64499.0,0.00827]
[1724453816418,2.26322401,64500.0,64499.0,0.00827]
[1724453816848,2.27122401,64500.0,64497.0,0.00018268]
[1724453817022,0.155065,64489.0,64488.0,0.39280903]
[1724453817227,0.93150301,64489.0,64488.0,0.39280903]
[1724453817424,1.24163301,64489.0,64488.0,0.39280903]
[1724453818321,1.24263301,64489.0,64488.0,0.39280903]
[1724453820601,0.465216,64486.0,64485.0,0.3981572]
[1724453822062,0.466216,64486.0,64485.0,0.3981572]
[1724453823609,0.001,64486.0,64485.0,0.5854572]
[1724453823819,0.001,64486.0,64485.0,0.3654572]
[1724453825297,0.156072,64486.0,64485.0,0.3654572]
[1724453825748,0.0327,64485.0,64478.0,0.04643414]
[1724453825955,0.34137801,64479.0,64475.0,0.00827]
[1724453826174,0.746896,64476.0,64475.0,0.00827]
[1724453826426,1.057088,64476.0,64475.0,0.00827]
[1724453826643,0.6918,64476.0,64475.0,0.00827]
[1724453826849,0.155082,64482.0,64475.0,0.00827]
[1724453827055,0.0327,64485.0,64475.0,0.00827]
[1724453827304,0.005,64479.0,64475.0,0.00827]
[1724453827514,0.188775,64485.0,64475.0,0.00827]
[1724453827720,0.01,64476.0,64475.0,0.00827]
[1724453828100,0.014,64482.0,64475.0,0.00827]
[1724453828485,0.155083,64482.0,64475.0,0.00827]
[1724453828686,0.15508,64483.0,64476.0,0.504]
[1724453828885,0.196776,64485.0,64476.0,0.504]
[1724453829110,0.0417,64485.0,64476.0,0.504]
[1724453829467,0.155077,64484.0,64476.0,0.504]
[1724453830120,0.155079,64483.0,64476.0,0.504]
[1724453830323,0.0327,64485.0,64476.0,0.504]
[1724453830498,0.310155,64484.0,64476.0,0.504]
[1724453830708,0.006,64482.0,64476.0,0.504]
[1724453830928,0.161082,64482.0,64476.0,0.504]
[1724453831137,0.0327,64485.0,64477.0,0.41320137]
[1724453831341,0.003,64483.0,64480.0,0.001]
[1724453831542,0.003,64483.0,64475.0,0.00827]
[1724453831543,0.4066,64480.0,64475.0,0.05468237]
[1724453831744,0.155096,64476.0,64475.0,0.00827]
[1724453831896,0.002,64482.0,64475.0,0.00827]
[1724453832099,0.002,64482.0,64476.0,0.4101]
[1724453832520,0.002,64482.0,64477.0,0.00310142]
[1724453832861,0.15509,64479.0,64477.0,0.00310142]
[1724453833082,0.155092,64478.0,64476.0,0.4101]
[1724453833641,0.155089,64479.0,64476.0,0.4101]
[1724453833845,0.15509,64479.0,64476.0,0.4101]
[1724453834050,0.155092,64478.0,64476.0,0.4101]
[1724453834252,0.155094,64477.0,64476.0,0.4101]
[1724453835079,0.003,64479.0,64476.0,0.4101]
[1724453835288,0.155093,64478.0,64476.0,0.4101]
[1724453835593,0.155094,64477.0,64476.0,0.4101]
[1724453836780,0.156094,64477.0,64476.0,0.4101]
[1724453837187,0.001,64477.0,64476.0,0.4101]
[1724453837815,0.156094,64477.0,64476.0,0.4101]
[1724453838016,0.156094,64477.0,64476.0,0.410927]
[1724453838234,0.466282,64477.0,64476.0,0.410927]
[1724453839211,2.28392134,64477.0,64476.0,0.000827]
[1724453839428,0.3981572,64484.0,64476.0,0.000827]
[1724453839629,0.155094,64477.0,64476.0,0.000827]
[1724453839805,0.467282,64477.0,64476.0,0.000827]
[1724453840048,0.77747,64477.0,64476.0,0.000827]
[1724453840217,0.77547,64477.0,64476.0,0.000827]
[1724453841298,0.78247,64477.0,64476.0,0.000827]
[1724453841880,1.17387,64477.0,64476.0,0.000827]
[1724453842736,1.17687,64477.0,64476.0,0.000827]
[1724453844228,2.26258308,64477.0,64476.0,0.000827]
[1724453844352,2.23387768,64477.0,64476.0,0.000827]
[1724453844551,1.93923745,64477.0,64476.0,0.000827]
[1724453844980,1.93313601,64477.0,64476.0,0.000827]
[1724453845934,0.88547,64477.0,64476.0,0.000827]
[1724453846884,0.165094,64477.0,64476.0,0.000827]
[1724453847088,0.01,64477.0,64476.0,0.392827]
[1724453847541,0.01,64477.0,64476.0,0.486727]
[1724453849312,0.003,64477.0,64476.0,0.486727]
[1724453849738,0.007,64477.0,64476.0,0.486727]
[1724453850077,0.008,64477.0,64476.0,0.486727]
[1724453850334,0.00190971,64477.0,64476.0,0.486727]
[1724453857191,0.00190971,64477.0,64476.0,0.000827]
[1724453857616,0.15700371,64477.0,64476.0,0.000827]
[1724453857817,0.46719171,64477.0,64476.0,0.000827]
[1724453858030,0.77737971,64477.0,64476.0,0.000827]
[1724453858244,1.16987971,64477.0,64476.0,0.000827]
[1724453858596,1.17487971,64477.0,64476.0,0.000827]
[1724453858801,1.17687971,64477.0,64476.0,0.000827]
[1724453859184,0.00590971,64477.0,64476.0,0.376527]
[1724453859388,0.00590971,64477.0,64476.0,0.68780101]
[1724453859680,0.01290971,64477.0,64476.0,1.35752219]
[1724453859855,0.01290971,64477.0,64476.0,0.96918554]
[1724453860027,0.01590971,64477.0,64476.0,1.43547354]
[1724453860234,0.01590971,64477.0,64476.0,0.96918554]
[1724453860437,0.01590971,64477.0,64476.0,1.34179918]
[1724453860438,0.01690971,64477.0,64476.0,1.34179918]
[1724453860605,0.01690971,64477.0,64476.0,1.34279918]
[1724453860802,0.01690971,64477.0,64476.0,0.81300753]
[1724453861025,0.01690971,64477.0,64476.0,0.376527]
[1724453861233,0.00990971,64477.0,64476.0,0.376527]
[1724453861646,0.01490971,64477.0,64476.0,0.376527]
[1724453861849,0.01090971,64477.0,64476.0,0.376527]
[1724453862049,0.00690971,64477.0,64476.0,0.378527]
[1724453862938,0.00790971,64477.0,64476.0,0.379527]
[1724453865571,0.00790971,64477.0,64476.0,0.003827]
[1724453866582,0.47319171,64477.0,64476.0,0.003827]
[1724453867005,0.78337971,64477.0,64476.0,0.003827]
[1724453867386,0.47319171,64477.0,64476.0,0.003827]
[1724453867813,0.47219171,64477.0,64476.0,0.002827]
[1724453868011,0.47119171,64477.0,64476.0,0.000827]
[1724453868238,0.00990971,64477.0,64476.0,0.001827]
[1724453868668,0.00590971,64477.0,64476.0,0.000827]
[1724453868888,0.00590971,64477.0,64476.0,0.001827]
[1724453869501,0.00990971,64477.0,64476.0,0.001827]
[1724453870109,0.00990971,64477.0,64476.0,0.842815]
[1724453870244,0.00990971,64477.0,64476.0,0.377527]
[1724453870590,0.00990971,64477.0,64476.0,0.42388686]
[1724453871241,0.00590971,64477.0,64476.0,0.42288686]
[1724453871484,0.00590971,64477.0,64476.0,0.42488686]
[1724453871485,0.00690971,64477.0,64476.0,0.42488686]
[1724453871862,0.00590971,64477.0,64476.0,0.42288686]
[1724453872014,0.00790971,64477.0,64476.0,0.42588686]
[1724453872216,0.00790971,64477.0,64476.0,0.69080101]
[1724453872437,1.04909171,64477.0,64476.0,0.02708215]
[1724453872693,0.00790971,64477.0,64476.0,0.003827]
[1724453873978,0.00690971,64477.0,64476.0,0.002827]
[1724453874266,0.00690971,64477.0,64476.0,0.003827]
[1724453874414,0.00590971,64477.0,64476.0,0.001827]
[1724453874955,0.00690971,64477.0,64476.0,0.004827]
[1724453875160,0.00590971,64477.0,64476.0,0.000827]
[1724453875354,0.00590971,64477.0,64476.0,0.004827]
[1724453875572,0.00690971,64477.0,64476.0,0.004827]
[1724453875733,0.00690971,64477.0,64476.0,0.001827]
[1724453875897,0.00690971,64477.0,64476.0,0.005827]
[1724453876287,0.03222191,64477.0,64476.0,0.005827]
[1724453877080,0.03222191,64477.0,64476.0,0.004827]
[1724453877326,0.03022191,64477.0,64476.0,0.001827]
[1724453877532,0.03022191,64477.0,64476.0,0.004827]
[1724453877740,0.03122191,64477.0,64476.0,0.003827]
[1724453877924,0.03122191,64477.0,64476.0,0.000827]
[1724453878159,0.03122191,64477.0,64476.0,0.004827]
[1724453878363,0.03222191,64477.0,64476.0,0.004827]
[1724453878974,0.03222191,64477.0,64476.0,0.003827]
[1724453879331,0.57981591,64477.0,64476.0,0.003827]
[1724453879537,1.07920391,64477.0,64476.0,0.003827]
[1724453880167,1.38939191,64477.0,64476.0,0.003827]
[1724453880404,1.38939191,64477.0,64476.0,0.001827]
[1724453880405,1.38839191,64477.0,64476.0,0.001827]
[1724453880609,1.07820391,64477.0,64476.0,0.001827]
[1724453880826,1.07820391,64477.0,64476.0,0.003827]
[1724453881142,1.07820391,64477.0,64476.0,0.000827]
[1724453881143,1.07720391,64477.0,64476.0,0.000827]
[1724453881351,1.07720391,64477.0,64476.0,0.003827]
[1724453881542,1.07720391,64477.0,64476.0,0.000827]
[1724453881739,1.11701963,64477.0,64476.0,0.000827]
[1724453881940,1.43020763,64477.0,64476.0,0.002827]
[1724453882345,1.12001963,64477.0,64476.0,0.000827]
[1724453882909,1.43020763,64477.0,64476.0,0.000827]
[1724453883325,1.11701963,64477.0,64476.0,0.000827]
[1724453883522,1.12101963,64477.0,64476.0,0.000827]
[1724453884103,1.42720763,64477.0,64476.0,0.000827]
[1724453884313,1.43220763,64477.0,64476.0,0.000827]
[1724453884955,1.43320763,64477.0,64476.0,0.000827]
[1724453885158,1.74339563,64477.0,64476.0,0.000827]
[1724453885511,1.74369503,64477.0,64476.0,0.000827]
[1724453887397,1.89987304,64477.0,64476.0,0.000827]
[1724453887602,1.085875,64464.0,64463.0,0.0105184]
[1724453887815,1.82375301,64464.0,64463.0,0.0105184]
[1724453888015,2.23400301,64464.0,64463.0,0.0105184]
[1724453888373,2.25832344,64464.0,64463.0,0.0105184]
[1724453888977,2.26432344,64464.0,64463.0,0.0105184]
[1724453890019,2.25832344,64464.0,64463.0,0.0105184]
[1724453891156,1.396341,64454.0,64447.0,0.0211757]
[1724453891366,2.09556124,64454.0,64447.0,0.0211757]
[1724453891577,1.767743,64454.0,64447.0,0.0211757]
[1724453891983,0.27947415,64454.0,64447.0,0.0211757]
[1724453892185,0.12432515,64454.0,64447.0,0.0211757]
[1724453892359,0.02432515,64454.0,64449.0,0.3937]
[1724453892511,0.02632515,64454.0,64450.0,0.00310258]
[1724453892963,0.03632515,64454.0,64449.0,0.3937]
[1724453893291,0.03632515,64454.0,64450.0,0.00310263]
[1724453893586,0.05032515,64454.0,64450.0,0.00310263]
[1724453893921,0.03632515,64454.0,64450.0,0.00310263]
[1724453894123,0.04232515,64454.0,64450.0,0.00310263]
[1724453894299,0.03032515,64454.0,64450.0,0.00310263]
[1724453894506,0.03332515,64454.0,64450.0,0.00310263]
[1724453894701,0.03032515,64454.0,64450.0,0.00310262]
[1724453895106,0.03232515,64454.0,64449.0,0.3937]
[1724453896003,0.03232515,64454.0,64451.0,0.103]
[1724453896180,0.03232515,64454.0,64453.0,0.15628801]
[1724453896652,0.02632515,64454.0,64453.0,0.15628801]
[1724453897260,0.02432515,64454.0,64453.0,0.15628801]
[1724453897772,0.02532515,64454.0,64453.0,0.15711501]
[1724453898198,0.02532515,64454.0,64453.0,0.10411501]
[1724453901107,0.22402515,64454.0,64453.0,0.000827]
[1724453901325,0.68947215,64454.0,64453.0,0.000827]
[1724453901713,0.99977015,64454.0,64453.0,0.000827]
[1724453902312,2.16864416,64454.0,64453.0,0.000827]
[1724453902647,2.24331901,64454.0,64453.0,0.000827]
[1724453902859,2.24831901,64454.0,64453.0,0.000827]
[1724453903307,2.25022544,64454.0,64453.0,0.000827]
[1724453903711,2.26122544,64454.0,64453.0,0.000827]
[1724453904046,2.25022544,64454.0,64453.0,0.000827]
[1724453904304,2.27455027,64454.0,64453.0,0.000827]
[1724453904506,2.28755027,64454.0,64453.0,0.000827]
[1724453904982,2.30155027,64454.0,64453.0,0.000827]
[1724453905193,1.97725227,64454.0,64453.0,0.000827]
[1724453905538,1.99125227,64454.0,64453.0,0.000827]
[1724453905755,1.97699407,64454.0,64453.0,0.000827]
[1724453906076,1.99099407,64454.0,64453.0,0.000827]
[1724453906491,1.97699407,64454.0,64453.0,0.000827]
[1724453906908,1.99099407,64454.0,64453.0,0.000827]
[1724453907683,1.478244,64448.0,64436.0,0.39280903]
[1724453908026,2.00606224,64448.0,64436.0,0.39280903]
[1724453908772,2.00606224,64448.0,64327.0,0.0154759]
[1724453908773,0.00034139,64385.0,64327.0,0.0154759]
[1724453909005,0.155639,64251.0,64200.0,1.0]
[1724453909175,0.46517213,64362.0,64200.0,1.0]
[1724453909176,0.4,64267.0,64266.0,0.16085052]
[1724453909371,0.4,64267.0,64238.0,0.36354213]
[1724453909372,0.8132444,64235.0,64215.0,0.15637217]
[1724453909574,1.557606,64201.0,64200.0,0.41309642]
[1724453909774,1.557606,64201.0,64098.0,0.24877294]
[1724453909775,0.46583595,64151.0,64124.0,0.07793815]
[1724453909988,0.46583595,64151.0,64093.0,0.46876099]
[1724453909989,0.467931,64112.0,64093.0,0.46876099]
[1724453910353,0.467931,64112.0,64106.0,0.00600814]
[1724453910354,1.52144976,64112.0,64106.0,0.00600814]
[1724453910650,1.52144976,64112.0,64086.0,0.02990662]
[1724453910651,0.498112,64087.0,64086.0,0.02990662]
[1724453910851,0.155991,64106.0,64105.0,0.09128612]
[1724453911053,0.3459978,64106.0,64082.0,0.02236012]
[1724453911262,0.3458985,64105.0,64100.0,0.46876099]
[1724453911461,0.3458985,64105.0,64080.0,0.16260066]
[1724453911462,0.48435841,64104.0,64101.0,0.4114]
[1724453911610,0.83024761,64103.0,64093.0,0.1575]
[1724453911814,0.24340303,64119.0,64104.0,0.001]
[1724453912015,0.24340303,64119.0,64118.0,0.39082411]
[1724453912215,0.09397566,64119.0,64118.0,0.39082411]
[1724453912415,0.09397566,64119.0,64118.0,0.46258748]
[1724453912619,0.09397566,64119.0,64118.0,0.39082411]
[1724453913033,0.04456546,64127.0,64118.0,0.39082411]
[1724453913237,0.02444729,64136.0,64135.0,0.497763]
[1724453913444,0.06684819,64167.0,64159.0,0.15586]
[1724453913593,0.06684819,64167.0,64165.0,0.00018348]
[1724453913793,0.06684819,64167.0,64166.0,0.45536264]
[1724453914239,0.04428768,64205.0,64166.0,0.2529]
[1724453914439,0.04428768,64205.0,64183.0,0.53941183]
[1724453914639,0.04428768,64205.0,64204.0,0.4029]
[1724453914840,0.001,64213.0,64204.0,0.4029]
[1724453915267,0.00273317,64192.0,64184.0,0.5604]
[1724453915473,0.00273317,64192.0,64191.0,0.46876099]
[1724453915709,0.00273317,64192.0,64191.0,0.20305411]
[1724453915845,0.00273317,64192.0,64184.0,0.4029]
[1724453916276,0.001,64187.0,64167.0,0.13045835]
[1724453916475,0.00273317,64192.0,64177.0,0.46876099]
[1724453916651,0.00273317,64192.0,64168.0,0.00311567]
[1724453916652,0.00273317,64192.0,64178.0,0.15929323]
[1724453917049,0.00273317,64192.0,64178.0,0.15617801]
[1724453917255,0.00273317,64192.0,64179.0,0.15929323]
[1724453917458,0.00273317,64192.0,64185.0,0.15617801]
[1724453917816,0.00273317,64192.0,64186.0,0.11643508]
[1724453917950,0.00273317,64192.0,64176.0,0.53941183]
[1724453918188,0.00273317,64192.0,64176.0,0.46876099]
[1724453918393,0.00273317,64192.0,64169.0,0.185836]
[1724453918596,0.00273317,64192.0,64172.0,0.03]
[1724453918797,0.00273317,64192.0,64173.0,0.15617801]
[1724453919005,0.00081652,64180.0,64172.0,0.03]
[1724453919219,0.00081652,64182.0,64174.0,0.03]
[1724453919420,0.00354969,64192.0,64176.0,0.03]
[1724453919623,0.00354969,64192.0,64177.0,0.15929345]
[1724453919831,0.00354969,64192.0,64178.0,0.03]
[1724453920052,0.00354969,64192.0,64179.0,0.17479581]
[1724453920251,0.00273317,64192.0,64181.0,0.03]
[1724453920459,0.00273317,64192.0,64188.0,0.15617801]
[1724453920679,0.00081652,64182.0,64181.0,0.03]
[1724453921249,0.00081652,64161.0,64160.0,0.46876099]
[1724453921475,0.00081652,64169.0,64160.0,0.50460641]
[1724453921692,0.00081652,64169.0,64161.0,0.00311666]
[1724453921880,0.00081652,64163.0,64158.0,0.001]
[1724453922092,0.311578,64190.0,64158.0,0.001]
[1724453922093,0.00055832,64164.0,64158.0,0.001]
[1724453922289,0.02499131,64168.0,64158.0,0.001]
[1724453922517,0.02443299,64168.0,64158.0,0.001]
[1724453922725,0.02443299,64168.0,64159.0,0.15617801]
[1724453922893,0.02443299,64168.0,64160.0,0.0157178]
[1724453923098,0.02443299,64168.0,64161.0,0.18617801]
[1724453923300,0.02443299,64168.0,64162.0,0.00311616]
[1724453923503,0.02443299,64168.0,64164.0,0.03]
[1724453923704,0.02443299,64168.0,64165.0,0.15617801]
[1724453923855,0.02443299,64168.0,64165.0,0.14449581]
[1724453924054,0.02443299,64168.0,64147.0,0.1]
[1724453924055,0.02443299,64168.0,64158.0,0.001]
[1724453924268,0.00055832,64164.0,64157.0,0.001]
[1724453924478,0.00055832,64165.0,64136.0,0.81489516]
[1724453924673,0.02443299,64168.0,64142.0,0.15617801]
[1724453924674,0.00055832,64163.0,64142.0,0.15617801]
[1724453924962,0.00055832,64163.0,64143.0,0.0356078]
[1724453925097,0.02443345,64158.0,64144.0,0.15617801]
[1724453925539,0.00055832,64185.0,64157.0,0.46791301]
[1724453925779,0.00055832,64185.0,64146.0,0.03]
[1724453925780,0.0042056,64192.0,64166.0,0.15617801]
[1724453925953,0.0042056,64192.0,64158.0,0.00355743]
[1724453925954,0.02442371,64187.0,64167.0,0.15895851]
[1724453926157,0.02442371,64187.0,64172.0,0.311659]
[1724453926363,0.00364728,64192.0,64176.0,0.1999]
[1724453926537,0.00364728,64192.0,64186.0,0.15617801]
[1724453927983,0.00055832,64185.0,64176.0,0.1999]
[1724453928185,0.00364728,64192.0,64177.0,0.15929375]
[1724453928385,0.00364728,64192.0,64178.0,0.03591937]
[1724453928586,0.00364728,64192.0,64185.0,0.15617801]
[1724453928788,0.00364728,64192.0,64188.0,0.15617801]
[1724453928991,0.00364728,64192.0,64191.0,0.467355]
[1724453929196,0.00364728,64192.0,64191.0,0.31196301]
[1724453929415,0.00364728,64192.0,64191.0,0.34315931]
[1724453929630,0.02441499,64199.0,64191.0,0.18669367]
[1724453929836,0.02441499,64199.0,64195.0,0.00522]
[1724453930049,0.02441499,64199.0,64196.0,0.15617801]
[1724453930897,0.02441499,64199.0,64198.0,0.155768]
[1724453931125,0.02641531,64223.0,64198.0,0.155768]
[1724453931126,0.02441531,64223.0,64198.0,0.44527271]
[1724453931335,0.02441531,64223.0,64204.0,0.15617801]
[1724453931539,0.02441531,64223.0,64205.0,0.01873147]
[1724453931746,0.02441531,64223.0,64214.0,0.155727]
[1724453931891,0.00055832,64234.0,64215.0,0.15929168]
[1724453932096,0.02440323,64234.0,64217.0,0.15572]
[1724453932452,0.00055832,64235.0,64218.0,0.16451137]
[1724453932586,0.004152,64228.0,64219.0,0.01645114]
[1724453932782,0.004152,64228.0,64220.0,0.15617801]
[1724453934407,0.004152,64228.0,64221.0,0.00311322]
[1724453934614,0.004152,64228.0,64222.0,0.14759151]
[1724453935027,0.004152,64228.0,64219.0,0.01645114]
[1724453935242,0.004152,64228.0,64219.0,0.15617801]
[1724453935668,0.004152,64228.0,64210.0,0.155737]
[1724453935910,0.004152,64228.0,64212.0,0.155732]
[1724453936082,0.004152,64228.0,64216.0,0.155724]
[1724453936221,0.004152,64228.0,64217.0,0.47073459]
[1724453936429,0.004152,64228.0,64189.0,0.78033799]
[1724453936430,0.00055832,64227.0,64189.0,0.46876099]
[1724453936763,0.00055832,64215.0,64208.0,0.46876099]
[1724453936964,0.00055832,64215.0,64193.0,0.355278]
[1724453937179,0.0244119,64214.0,64196.0,0.155771]
[1724453937382,0.0244119,64214.0,64199.0,0.15929235]
[1724453937590,0.0244119,64214.0,64207.0,0.155745]
[1724453937747,0.00471032,64228.0,64208.0,0.15929181]
[1724453937949,0.02441202,64220.0,64209.0,0.31148]
[1724453938199,0.02441202,64220.0,64210.0,0.20325519]
[1724453938401,0.02441202,64220.0,64211.0,0.00311379]
[1724453938600,0.02441202,64220.0,64212.0,0.15617801]
[1724453938802,0.02441202,64220.0,64213.0,0.00311364]
[1724453939006,0.02441202,64220.0,64219.0,0.311434]
[1724453939205,0.04396772,64228.0,64219.0,0.20293921]
[1724453939378,0.04396772,64228.0,64220.0,0.15617801]
[1724453939578,0.06837368,64228.0,64223.0,0.155706]
[1724453939779,0.06837368,64228.0,64220.0,0.15617801]
[1724453939956,0.06837368,64228.0,64221.0,0.00311359]
[1724453940157,0.06337368,64228.0,64227.0,0.155697]
[1724453940408,0.03896772,64228.0,64227.0,0.65476887]
[1724453940835,0.03896772,64228.0,64227.0,1.24076887]
[1724453941087,0.03896772,64228.0,64227.0,1.55216387]
[1724453941495,0.03396772,64228.0,64227.0,1.55216387]
[1724453941823,0.009152,64247.0,64246.0,0.155651]
[1724453942027,0.009152,64247.0,64246.0,0.01071079]
[1724453942240,0.009152,64247.0,64234.0,0.311356]
[1724453942444,0.009152,64247.0,64246.0,0.93443501]
[1724453942646,0.009152,64247.0,64246.0,1.24573801]
[1724453942874,0.009152,64247.0,64246.0,1.58004101]
[1724453943075,0.009152,64247.0,64246.0,1.36873801]
[1724453943280,0.009152,64247.0,64246.0,1.50565598]
[1724453943849,0.009152,64257.0,64256.0,0.778135]
[1724453944053,0.009152,64257.0,64256.0,0.93431301]
[1724453944257,0.009152,64257.0,64256.0,1.24556701]
[1724453944710,0.009152,64257.0,64256.0,1.34556701]
[1724453944946,0.009152,64257.0,64256.0,1.48012371]
[1724453945158,0.009152,64257.0,64256.0,1.67962371]
[1724453945712,0.009152,64257.0,64256.0,1.99087771]
[1724453945918,0.009152,64257.0,64256.0,1.67962371]
[1724453946121,0.009152,64257.0,64256.0,0.1416]
[1724453946321,0.009152,64257.0,64241.0,0.10277448]
[1724453946496,0.03354348,64257.0,64247.0,0.311298]
[1724453946702,0.03354348,64257.0,64242.0,0.15617801]
[1724453947019,0.03354348,64257.0,64256.0,0.155627]
[1724453947237,0.03354348,64257.0,64256.0,0.4824437]
[1724453947407,0.009152,64257.0,64256.0,1.26112971]
[1724453947611,0.009152,64257.0,64256.0,1.36390419]
[1724453947840,0.009152,64257.0,64256.0,1.46062971]
[1724453948037,0.009152,64257.0,64256.0,1.87188371]
[1724453948255,0.009152,64257.0,64256.0,1.56062971]
[1724453948398,0.009152,64257.0,64256.0,2.03933371]
[1724453948628,0.02438811,64276.0,64263.0,0.778052]
[1724453948828,0.02438811,64276.0,64263.0,1.03423001]
[1724453949054,0.02438811,64276.0,64257.0,0.46738168]
[1724453949055,0.00055832,64275.0,64257.0,0.15613168]
[1724453949256,0.00055832,64275.0,64263.0,0.15561]
[1724453949463,0.00055832,64275.0,64261.0,0.155613]
[1724453949714,0.02438919,64269.0,64263.0,0.466831]
[1724453949930,0.00055832,64278.0,64263.0,0.93423001]
[1724453950143,0.00055832,64278.0,64263.0,0.62300901]
[1724453950362,0.00055832,64278.0,64263.0,0.38408891]
[1724453950363,0.02438781,64270.0,64263.0,0.38408891]
[1724453950697,0.02438781,64270.0,64256.0,0.2150627]
[1724453950698,0.02438781,64270.0,64261.0,0.155614]
[1724453950898,0.02438781,64270.0,64263.0,0.15561]
[1724453951100,0.02438781,64270.0,64263.0,0.311221]